bitfinex/quotes_BTCUSD_20250208
["timestamp","ask_amount","ask_price","bid_price","bid_amount"]
[1738976746830,0.1362862,96781.0,96780.0,0.25749365]
[1738976747901,0.0569862,96781.0,96780.0,0.25749365]
[1738976748216,0.0116862,96781.0,96780.0,0.25749365]
[1738976749564,0.0908862,96781.0,96780.0,0.10250365]
[1738976749740,0.10642005,96781.0,96780.0,0.10250365]
[1738976749931,0.10742005,96781.0,96780.0,0.25749365]
[1738976750098,0.10742005,96781.0,96780.0,0.10250365]
[1738976750882,0.0126862,96781.0,96780.0,0.25749365]
[1738976751094,0.00745935,96781.0,96780.0,0.25749365]
[1738976752199,0.00645935,96781.0,96780.0,0.25749365]
[1738976752400,0.00745935,96781.0,96780.0,0.25749365]
[1738976755361,0.00745935,96781.0,96780.0,0.10250365]
[1738976755639,0.02949051,96781.0,96780.0,0.10250365]
[1738976756469,0.03471745,96781.0,96780.0,0.10250365]
[1738976756691,0.03571745,96781.0,96780.0,0.10250365]
[1738976758266,0.03571745,96781.0,96773.0,0.00023984]
[1738976758267,0.154999,96775.0,96773.0,0.00023984]
[1738976758467,0.01897164,96774.0,96773.0,0.10274349]
[1738976758663,0.02419397,96774.0,96773.0,0.10274349]
[1738976759850,0.02419397,96774.0,96773.0,0.10474349]
[1738976760004,0.02419397,96774.0,96773.0,0.10274349]
[1738976760412,0.04357609,96774.0,96773.0,0.10274349]
[1738976760815,0.02460445,96774.0,96773.0,0.10274349]
[1738976761334,0.01938212,96774.0,96773.0,0.10274349]
[1738976761675,0.02460201,96774.0,96773.0,0.10274349]
[1738976761877,0.02760201,96774.0,96773.0,0.10274349]
[1738976762107,0.18260201,96774.0,96773.0,0.10274349]
[1738976762325,0.25781177,96774.0,96773.0,0.10274349]
[1738976763245,0.25481177,96774.0,96773.0,0.10274349]
[1738976763644,0.25781177,96774.0,96773.0,0.10274349]
[1738976764868,0.25781177,96774.0,96773.0,0.00023984]
[1738976765304,0.25481177,96774.0,96773.0,0.00023984]
[1738976765536,0.25781177,96774.0,96773.0,0.00023984]
[1738976766273,0.26081177,96774.0,96773.0,0.00023984]
[1738976769768,0.18560201,96774.0,96773.0,0.00023984]
[1738976769979,0.03060201,96774.0,96773.0,0.00023984]
[1738976772402,0.30690201,96774.0,96773.0,0.00023984]
[1738976772752,0.34332035,96774.0,96773.0,0.00023984]
[1738976773270,0.35042324,96774.0,96773.0,0.00023984]
[1738976773502,0.43930814,96774.0,96773.0,0.00023984]
[1738976774781,0.44541494,96774.0,96773.0,0.00123984]
[1738976774977,0.44541494,96774.0,96773.0,0.00023984]
[1738976775180,0.4089966,96774.0,96773.0,0.00123984]
[1738976775391,0.4149966,96774.0,96773.0,0.00123984]
[1738976775614,0.9316666,96774.0,96773.0,0.00123984]
[1738976776411,0.91874383,96774.0,96773.0,0.00123984]
[1738976777849,0.90674383,96774.0,96773.0,0.00023984]
[1738976778051,0.91574383,96774.0,96773.0,0.00123984]
[1738976778702,0.82385893,96774.0,96773.0,0.00123984]
[1738976778906,0.81485893,96774.0,96773.0,0.00023984]
[1738976779347,0.82385893,96774.0,96773.0,0.00123984]
[1738976779727,0.83678494,96774.0,96773.0,0.00123984]
[1738976781360,0.81485893,96774.0,96773.0,0.00023984]
[1738976781570,0.91736258,96774.0,96773.0,0.00023984]
[1738976781784,0.73525604,96774.0,96773.0,0.00123984]
[1738976782006,0.73525604,96774.0,96773.0,0.00023984]
[1738976782413,0.74225604,96774.0,96773.0,0.00123984]
[1738976782665,0.73425604,96774.0,96773.0,0.00023984]
[1738976783041,0.74125604,96774.0,96773.0,0.00123984]
[1738976783907,0.54245604,96774.0,96773.0,0.00123984]
[1738976784482,0.54245604,96774.0,96773.0,0.10374349]
[1738976784812,0.53723615,96774.0,96773.0,0.10374349]
[1738976785163,0.52932329,96774.0,96773.0,0.10274349]
[1738976785642,0.53632329,96774.0,96773.0,0.10374349]
[1738976785824,0.53632329,96774.0,96773.0,0.10274349]
[1738976786176,0.54132329,96774.0,96773.0,0.10274349]
[1738976790053,0.6316311,96774.0,96773.0,0.10274349]
[1738976790651,0.54132329,96774.0,96773.0,0.10274349]
[1738976791987,0.54132329,96774.0,96773.0,0.00023984]
[1738976792169,0.61792329,96774.0,96773.0,0.00023984]
[1738976792366,0.66662329,96774.0,96773.0,0.00023984]
[1738976794003,0.82162329,96774.0,96773.0,0.00023984]
[1738976794666,0.8772744,96774.0,96773.0,0.00023984]
[1738976795412,1.0272744,96774.0,96773.0,0.00023984]
[1738976804548,1.0152744,96774.0,96773.0,0.00023984]
[1738976804756,1.0242744,96774.0,96773.0,0.00123984]
[1738976805288,1.0332744,96774.0,96773.0,0.00223984]
[1738976805694,1.3533744,96774.0,96773.0,0.00223984]
[1738976806013,1.46587805,96774.0,96773.0,0.00223984]
[1738976806215,0.305027,96757.0,96756.0,0.00022428]
[1738976806418,0.956877,96757.0,96756.0,0.00022428]
[1738976806634,0.99941139,96757.0,96756.0,0.00022428]
[1738976807162,1.46501504,96757.0,96756.0,0.00022428]
[1738976807296,1.49849066,96757.0,96756.0,0.00022428]
[1738976807508,0.431762,96735.0,96734.0,0.0001067]
[1738976807701,0.948432,96735.0,96734.0,0.00056091]
[1738976807913,0.95450422,96735.0,96734.0,0.00056091]
[1738976808725,0.96150422,96735.0,96734.0,0.00056091]
[1738976810292,0.97893088,96735.0,96734.0,0.00056091]
[1738976810457,1.08789388,96735.0,96734.0,0.00056091]
[1738976816538,1.0876355,96735.0,96734.0,0.00056091]
[1738976816739,1.12405384,96735.0,96734.0,0.00056091]
[1738976817424,1.44415384,96735.0,96734.0,0.00056091]
[1738976819149,1.34165019,96735.0,96734.0,0.00056091]
[1738976820894,1.32765019,96735.0,96734.0,0.00056091]
[1738976821318,1.33665019,96735.0,96734.0,0.00056091]
[1738976821917,1.30023185,96735.0,96734.0,0.00056091]
[1738976824311,0.305091,96717.0,96716.0,0.08328188]
[1738976824516,0.821761,96717.0,96716.0,0.08341794]
[1738976824718,0.52294887,96717.0,96716.0,0.18233971]
[1738976825531,0.52494887,96717.0,96716.0,0.18233971]
[1738976826880,0.68003987,96717.0,96716.0,0.00013606]
[1738976827083,0.76672116,96717.0,96716.0,0.00013606]
[1738976827487,0.76872116,96717.0,96716.0,0.00013606]
[1738976827676,0.76672116,96717.0,96716.0,0.00013606]
[1738976828208,0.76872116,96717.0,96716.0,0.00013606]
[1738976828458,0.77318721,96717.0,96716.0,0.00013606]
[1738976828598,0.77518721,96717.0,96716.0,0.00013606]
[1738976829036,0.68650592,96717.0,96716.0,0.00013606]
[1738976829391,0.53141492,96717.0,96716.0,0.00013606]
[1738976830392,0.52941492,96717.0,96716.0,0.00013606]
[1738976830815,0.53141492,96717.0,96716.0,0.00013606]
[1738976831271,0.52494887,96717.0,96716.0,0.00013606]
[1738976831436,0.62745252,96717.0,96716.0,0.00013606]
[1738976832951,0.62745252,96717.0,96716.0,0.00024286]
[1738976835404,0.52494887,96717.0,96716.0,0.00024286]
[1738976836663,0.52494887,96717.0,96716.0,0.10274651]
[1738976837034,0.52294887,96717.0,96716.0,0.10274651]
[1738976837393,0.52394887,96717.0,96716.0,0.10274651]
[1738976838264,0.52394887,96717.0,96716.0,0.25783951]
[1738976842215,0.52294887,96717.0,96716.0,0.25783951]
[1738976842568,0.52494887,96717.0,96716.0,0.25783951]
[1738976842774,0.52494887,96717.0,96716.0,0.3674592]
[1738976843516,0.52494887,96717.0,96716.0,0.4162592]
[1738976843919,0.52294887,96717.0,96716.0,0.4392592]
[1738976844124,0.52294887,96717.0,96716.0,0.7661592]
[1738976844503,0.47668512,96717.0,96716.0,0.93654533]
[1738976844715,0.40593409,96717.0,96716.0,0.93654533]
[1738976844917,0.39512819,96717.0,96716.0,0.93654533]
[1738976845115,0.38895431,96717.0,96716.0,0.93654533]
[1738976845489,0.19450774,96717.0,96716.0,0.90424533]
[1738976845696,0.16562774,96717.0,96716.0,0.90424533]
[1738976845911,0.15934887,96717.0,96716.0,0.90424533]
[1738976846088,0.00122428,96717.0,96716.0,0.90424533]
[1738976846291,0.00022428,96717.0,96716.0,0.90424533]
[1738976847259,0.00022428,96717.0,96716.0,1.41494533]
[1738976847691,0.00122428,96717.0,96716.0,1.41494533]
[1738976848290,0.00122428,96717.0,96716.0,1.38272564]
[1738976852211,0.00122428,96717.0,96716.0,1.19322564]
[1738976852433,0.00122428,96717.0,96716.0,1.09543951]
[1738976852636,0.00122428,96717.0,96716.0,0.25783951]
[1738976853831,0.00022428,96717.0,96716.0,0.25783951]
[1738976854203,0.00122428,96717.0,96716.0,0.25783951]
[1738976854373,0.00022428,96717.0,96716.0,0.25783951]
[1738976854576,6.787e-05,96717.0,96716.0,0.25783951]
[1738976854777,0.00106787,96717.0,96716.0,0.25783951]
[1738976858888,0.00106787,96717.0,96716.0,0.36193951]
[1738976859289,0.00106787,96717.0,96716.0,0.3940073]
[1738976860035,6.787e-05,96717.0,96716.0,0.3940073]
[1738976860366,0.00106787,96717.0,96716.0,0.3980073]
[1738976862234,0.00106787,96717.0,96716.0,0.7249073]
[1738976863814,0.00106787,96717.0,96716.0,0.8749073]
[1738976874058,0.00106787,96717.0,96716.0,1.3856073]
[1738976876584,0.00106787,96717.0,96716.0,1.3956073]
[1738976876810,8.7e-07,96717.0,96716.0,1.4056073]
[1738976877029,0.00022428,96735.0,96734.0,0.178064]
[1738976877201,0.00022428,96735.0,96734.0,0.31263544]
[1738976878954,0.00022428,96735.0,96734.0,0.71503544]
[1738976879232,0.00022428,96735.0,96734.0,0.86503544]
[1738976879588,0.00022428,96735.0,96734.0,0.86903544]
[1738976880335,0.00022428,96735.0,96734.0,0.88954948]
[1738976880845,0.00022428,96735.0,96734.0,0.89554948]
[1738976881053,2.8e-07,96735.0,96734.0,0.90154948]
[1738976881458,2.8e-07,96735.0,96734.0,0.91154948]
[1738976881665,0.0489,96767.0,96756.0,0.155029]
[1738976881840,0.0489,96767.0,96756.0,0.63950044]
[1738976883338,0.0489,96767.0,96756.0,0.61143265]
[1738976883543,0.0489,96767.0,96756.0,0.64350534]
[1738976885908,0.0489,96767.0,96756.0,0.66457171]
[1738976886451,0.0489,96767.0,96756.0,0.63249902]
[1738976886875,0.0489,96767.0,96756.0,0.66453067]
[1738976887075,0.0489,96767.0,96756.0,0.67494066]
[1738976887570,0.0489,96767.0,96756.0,0.64290901]
[1738976890929,0.0489,96767.0,96756.0,0.79290901]
[1738976891134,0.0493,96776.0,96756.0,0.82493762]
[1738976892947,0.0493,96776.0,96756.0,0.82093762]
[1738976893152,0.0493,96776.0,96756.0,0.82593762]
[1738976893376,0.0493,96776.0,96756.0,0.82093762]
[1738976893763,0.00122428,96757.0,96756.0,0.82993762]
[1738976894931,0.00122428,96757.0,96756.0,1.34063762]
[1738976897156,1e-08,96757.0,96756.0,1.34063762]
[1738976905940,1e-08,96757.0,96756.0,1.3408619]
[1738976906105,0.00010681,96757.0,96756.0,1.3408619]
[1738976927555,0.12230681,96757.0,96756.0,0.15416653]
[1738976927889,0.1446932,96757.0,96756.0,0.04125289]
[1738976928021,0.1446932,96757.0,96756.0,0.00922428]
[1738976928224,0.0756,96754.0,96737.0,0.09235085]
[1738976928427,0.0756,96743.0,96738.0,0.10250365]
[1738976928626,0.0466,96742.0,96739.0,0.155056]
[1738976928947,0.08611165,96741.0,96740.0,0.10250365]
[1738976930418,0.09257473,96741.0,96740.0,0.10250365]
[1738976930620,0.09257473,96741.0,96739.0,0.005]
[1738976930621,0.13917473,96741.0,96739.0,0.005]
[1738976930817,0.277254,96740.0,96739.0,0.005]
[1738976931266,0.43774313,96740.0,96739.0,0.005]
[1738976931720,0.155061,96736.0,96735.0,0.00022428]
[1738976931915,0.1222,96723.0,96716.0,0.1551988]
[1738976932083,0.0756,96722.0,96717.0,0.10250365]
[1738976932285,0.01046781,96721.0,96717.0,0.10250365]
[1738976932486,0.0756,96720.0,96717.0,0.10250365]
[1738976932689,0.01046544,96719.0,96717.0,0.10250365]
[1738976932888,0.0756,96718.0,96717.0,0.10250365]
[1738976933089,0.08606425,96718.0,96717.0,0.10250365]
[1738976934214,0.08606425,96718.0,96717.0,0.25759465]
[1738976934618,0.0756,96718.0,96717.0,0.25759465]
[1738976935623,0.0766,96718.0,96717.0,0.25759465]
[1738976938192,0.0766,96718.0,96717.0,0.10250365]
[1738976938538,0.087063,96718.0,96717.0,0.10250365]
[1738976940010,0.0766,96718.0,96717.0,0.25759465]
[1738976940163,0.0766,96718.0,96717.0,0.10250365]
[1738976940330,0.0870321,96718.0,96717.0,0.10250365]
[1738976941413,0.0870321,96718.0,96717.0,0.25759465]
[1738976941615,0.0860321,96718.0,96717.0,0.25781893]
[1738976941838,0.0756,96718.0,96717.0,0.25781893]
[1738976947156,0.04670788,96723.0,96722.0,0.155083]
[1738976947365,0.00010788,96723.0,96722.0,0.25758665]
[1738976948444,6.788e-05,96723.0,96722.0,0.26058665]
[1738976950887,0.08076788,96723.0,96722.0,0.10550365]
[1738976951536,0.08884467,96723.0,96722.0,0.10250365]
[1738976951995,0.08884467,96723.0,96722.0,0.10350365]
[1738976952348,0.08076788,96723.0,96722.0,0.10250365]
[1738976952551,0.08076788,96723.0,96722.0,0.10350365]
[1738976953691,0.08076788,96723.0,96722.0,0.25858665]
[1738976954108,0.08076788,96723.0,96722.0,0.25758665]
[1738976954310,0.08076788,96723.0,96722.0,0.25858665]
[1738976955077,6.788e-05,96723.0,96722.0,0.25858665]
[1738976957129,6.788e-05,96723.0,96722.0,0.60848665]
[1738976957365,6.788e-05,96723.0,96722.0,0.64052742]
[1738976957760,6.788e-05,96723.0,96722.0,0.63952742]
[1738976958143,0.00106788,96723.0,96722.0,0.64752742]
[1738976958342,0.00106788,96723.0,96722.0,0.64552742]
[1738976958866,0.00106788,96723.0,96722.0,0.61348665]
[1738976959118,0.00106788,96723.0,96722.0,0.64556883]
[1738976959290,0.00106788,96723.0,96722.0,0.64856883]
[1738976960564,0.00206788,96723.0,96722.0,0.63456883]
[1738976960949,0.00206788,96723.0,96722.0,0.27558665]
[1738976961364,0.04876788,96723.0,96722.0,0.27558665]
[1738976961741,0.05832502,96723.0,96722.0,0.26658665]
[1738976961950,0.04876788,96723.0,96722.0,0.26658665]
[1738976962251,0.04776788,96723.0,96722.0,0.26658665]
[1738976962453,0.04676788,96723.0,96722.0,0.25858665]
[1738976962686,0.04676788,96723.0,96722.0,0.25758665]
[1738976962895,0.04676788,96723.0,96722.0,0.25858665]
[1738976963324,0.05323247,96723.0,96722.0,0.25858665]
[1738976963702,0.05423247,96723.0,96722.0,0.26358665]
[1738976964209,0.05323247,96723.0,96722.0,0.25758665]
[1738976964431,0.04676788,96723.0,96722.0,0.25958665]
[1738976964587,0.04776788,96723.0,96722.0,0.26558665]
[1738976964772,0.04776788,96723.0,96722.0,0.26381093]
[1738976964975,0.04676788,96723.0,96722.0,0.25981093]
[1738976965169,0.04687468,96723.0,96722.0,0.25981093]
[1738976965389,0.04787468,96723.0,96722.0,0.26381093]
[1738976965596,0.04787468,96723.0,96722.0,0.26581093]
[1738976966794,0.04687468,96723.0,96722.0,0.25981093]
[1738976967274,0.04787468,96723.0,96722.0,0.26581093]
[1738976968374,0.14264215,96723.0,96722.0,0.00822428]
[1738976968538,0.45187047,96723.0,96722.0,0.00822428]
[1738976968743,0.46218834,96723.0,96722.0,0.00822428]
[1738976969593,0.43359,96718.0,96717.0,0.00022428]
[1738976970006,0.44443061,96718.0,96717.0,0.00022428]
[1738976970218,0.54693426,96718.0,96717.0,0.00022428]
[1738976970450,0.54409482,96718.0,96717.0,0.00022428]
[1738976970805,0.55009482,96718.0,96717.0,0.00122428]
[1738976971201,0.55655917,96718.0,96717.0,0.00122428]
[1738976971804,0.55055917,96718.0,96717.0,0.00022428]
[1738976972008,0.55855917,96718.0,96717.0,0.00122428]
[1738976972208,0.55855917,96718.0,96717.0,0.00022428]
[1738976972405,0.55209482,96718.0,96717.0,0.00022428]
[1738976972758,0.56109482,96718.0,96717.0,0.00122428]
[1738976973260,0.56909482,96718.0,96717.0,0.00122428]
[1738976973459,0.56109482,96718.0,96717.0,0.00122428]
[1738976973901,0.56909482,96718.0,96717.0,0.00122428]
[1738976979392,0.67159847,96718.0,96717.0,0.00122428]
[1738976980322,1.1950359,96718.0,96717.0,0.00122428]
[1738976980554,1.23145384,96718.0,96717.0,0.00122428]
[1738976981875,1.21445384,96718.0,96717.0,0.00022428]
[1738976982086,1.20645384,96718.0,96717.0,0.00022428]
[1738976982228,1.20645384,96718.0,96717.0,0.00122428]
[1738976982229,1.21545384,96718.0,96717.0,0.00122428]
[1738976982419,1.22345384,96718.0,96717.0,0.00122428]
[1738976982785,1.24433575,96718.0,96717.0,0.00122428]
[1738976983322,1.23633575,96718.0,96717.0,0.00122428]
[1738976983564,1.24533575,96718.0,96717.0,0.00122428]
[1738976983923,1.20891781,96718.0,96717.0,0.00122428]
[1738976984180,1.19991781,96718.0,96717.0,0.00022428]
[1738976984386,1.20891781,96718.0,96717.0,0.00022428]
[1738976984787,1.1880359,96718.0,96717.0,0.00022428]
[1738976987824,0.9830286,96718.0,96717.0,0.00022428]
[1738976988209,0.9914686,96718.0,96717.0,0.00022428]
[1738976988540,0.9824686,96718.0,96717.0,0.00022428]
[1738976988741,0.7331286,96718.0,96717.0,0.00022428]
[1738976988943,0.5394386,96718.0,96717.0,0.00022428]
[1738976989169,0.6984386,96718.0,96717.0,0.00022428]
[1738976989379,0.8535286,96718.0,96717.0,0.00022428]
[1738976989893,0.8445286,96718.0,96717.0,0.00022428]
[1738976990094,0.8535286,96718.0,96717.0,0.00022428]
[1738976990427,0.88440694,96718.0,96717.0,0.00022428]
[1738976990566,0.89340694,96718.0,96717.0,0.00022428]
[1738976990766,0.88440694,96718.0,96717.0,0.00022428]
[1738976991165,0.88940694,96718.0,96717.0,0.00022428]
[1738976991391,0.88040694,96718.0,96717.0,0.00022428]
[1738976991621,0.88340694,96718.0,96717.0,0.00022428]
[1738976991800,0.88840694,96718.0,96717.0,0.00022428]
[1738976992002,0.87840694,96718.0,96717.0,0.00022428]
[1738976992158,0.87540694,96718.0,96717.0,0.00022428]
[1738976992564,0.88040694,96718.0,96717.0,0.00022428]
[1738976993549,0.88140694,96718.0,96717.0,0.00022428]
[1738976994003,0.88640694,96718.0,96717.0,0.00022428]
[1738976994811,0.88940694,96718.0,96717.0,0.00022428]
[1738976995472,0.88640694,96718.0,96717.0,0.00022428]
[1738976995671,0.89040694,96718.0,96717.0,0.00022428]
[1738976995877,0.6964386,96718.0,96717.0,0.00022428]
[1738976996081,0.6924386,96718.0,96717.0,0.00022428]
[1738976996280,0.6814386,96718.0,96717.0,0.00022428]
[1738976996522,0.6844386,96718.0,96717.0,0.00022428]
[1738976996723,0.6884386,96718.0,96717.0,0.00022428]
[1738976996941,0.7335937,96718.0,96717.0,0.00022428]
[1738976997312,0.7385937,96718.0,96717.0,0.00022428]
[1738976997495,0.7345937,96718.0,96717.0,0.00022428]
[1738976997713,0.7385937,96718.0,96717.0,0.00022428]
[1738976997914,0.5404386,96718.0,96717.0,0.00022428]
[1738976998455,0.5444386,96718.0,96717.0,0.00022428]
[1738976998654,0.5404386,96718.0,96717.0,0.00022428]
[1738976999033,0.5424386,96718.0,96717.0,0.00022428]
[1738976999840,0.5374386,96718.0,96717.0,0.00022428]
[1738977000045,0.5334386,96718.0,96717.0,0.00022428]
[1738977000223,0.5364386,96718.0,96717.0,0.10272793]
[1738977000411,0.5334386,96718.0,96717.0,0.10272793]
[1738977000813,0.5314386,96718.0,96717.0,0.10272793]
[1738977001061,0.5324386,96718.0,96717.0,0.10272793]
[1738977001264,0.5324386,96718.0,96717.0,0.10372793]
[1738977001726,0.5314386,96718.0,96717.0,0.10272793]
[1738977002061,0.5314386,96718.0,96717.0,0.10372793]
[1738977002418,0.55465887,96718.0,96717.0,0.10372793]
[1738977002618,0.55465887,96718.0,96717.0,0.10272793]
[1738977002862,0.5314386,96718.0,96717.0,0.10272793]
[1738977003063,0.5314386,96718.0,96717.0,0.00022428]
[1738977003064,0.6865286,96718.0,96717.0,0.00022428]
[1738977003275,0.6875286,96718.0,96717.0,0.00022428]
[1738977003679,0.8842286,96718.0,96717.0,0.00022428]
[1738977003927,0.98573225,96718.0,96717.0,0.00022428]
[1738977004158,0.98573225,96718.0,96717.0,0.00122428]
[1738977004386,1.1726359,96718.0,96717.0,0.00122428]
[1738977004567,1.1726359,96718.0,96717.0,0.00022428]
[1738977004763,1.1676359,96718.0,96717.0,0.00022428]
[1738977004968,1.1816359,96718.0,96717.0,0.00022428]
[1738977005478,1.1746359,96718.0,96717.0,0.00022428]
[1738977005897,1.1900343,96718.0,96717.0,0.00022428]
[1738977006404,1.1830343,96718.0,96717.0,0.00022428]
[1738977006609,1.1880343,96718.0,96717.0,0.00022428]
[1738977007886,0.9726286,96718.0,96717.0,0.00022428]
[1738977008090,0.9810686,96718.0,96717.0,0.00022428]
[1738977010312,0.97460117,96718.0,96717.0,0.00022428]
[1738977010657,0.53497117,96718.0,96717.0,0.00022428]
[1738977010858,0.53497117,96718.0,96717.0,0.10272793]
[1738977011601,0.53729363,96718.0,96717.0,0.10272793]
[1738977011743,0.53229363,96718.0,96717.0,0.10272793]
[1738977011951,0.53729363,96718.0,96717.0,0.10272793]
[1738977013117,0.53229363,96718.0,96717.0,0.10272793]
[1738977013339,0.52729363,96718.0,96717.0,0.10272793]
[1738977013544,0.53329363,96718.0,96717.0,0.10272793]
[1738977013680,0.52729363,96718.0,96717.0,0.10372793]
[1738977014015,0.52829363,96718.0,96717.0,0.10372793]
[1738977014426,0.52829363,96718.0,96717.0,0.10272793]
[1738977014826,0.52929363,96718.0,96717.0,0.10572793]
[1738977015437,0.52829363,96718.0,96717.0,0.10572793]
[1738977015841,0.52929363,96718.0,96717.0,0.10572793]
[1738977016996,0.52829363,96718.0,96717.0,0.10272793]
[1738977017135,0.52929363,96718.0,96717.0,0.10572793]
[1738977017883,0.52829363,96718.0,96717.0,0.10272793]
[1738977018225,0.52829363,96718.0,96717.0,0.10672793]
[1738977018435,0.52929363,96718.0,96717.0,0.10672793]
[1738977019680,0.52729363,96718.0,96717.0,0.10272793]
[1738977020074,0.52829363,96718.0,96717.0,0.10572793]
[1738977020639,0.52729363,96718.0,96717.0,0.10272793]
[1738977020827,0.52929363,96718.0,96717.0,0.10572793]
[1738977021130,0.52829363,96718.0,96717.0,0.10572793]
[1738977021328,0.52729363,96718.0,96717.0,0.10272793]
[1738977022525,0.52829363,96718.0,96717.0,0.10272793]
[1738977023182,0.52929363,96718.0,96717.0,0.10572793]
[1738977030138,0.52829363,96718.0,96717.0,0.10272793]
[1738977030338,0.52829363,96718.0,96717.0,0.10572793]
[1738977030743,0.52929363,96718.0,96717.0,0.10572793]
[1738977030946,0.52829363,96718.0,96717.0,0.10272793]
[1738977031150,0.52929363,96718.0,96717.0,0.10572793]
[1738977031860,0.52729363,96718.0,96717.0,0.10272793]
[1738977032262,0.52829363,96718.0,96717.0,0.10272793]
[1738977032488,0.57329363,96718.0,96717.0,0.00022428]
[1738977032813,0.73484902,96718.0,96717.0,0.00022428]
[1738977033246,0.58075902,96718.0,96717.0,0.00322428]
[1738977033975,0.6462299,96718.0,96717.0,0.00322428]
[1738977034821,0.58075902,96718.0,96717.0,0.00322428]
[1738977037073,0.59110368,96718.0,96717.0,0.00322428]
[1738977037501,0.59010368,96718.0,96717.0,0.00322428]
[1738977037722,0.58910368,96718.0,96717.0,0.00022428]
[1738977037935,0.59010368,96718.0,96717.0,0.00322428]
[1738977038347,0.54510368,96718.0,96717.0,0.10572793]
[1738977038958,0.54610368,96718.0,96717.0,0.10572793]
[1738977040329,0.60139558,96718.0,96717.0,0.00322428]
[1738977040645,0.54610368,96718.0,96717.0,0.00322428]
[1738977042006,0.54410368,96718.0,96717.0,0.00022428]
[1738977042206,0.54710368,96718.0,96717.0,0.00022428]
[1738977042891,0.55010368,96718.0,96717.0,0.00022428]
[1738977043304,0.55110368,96718.0,96717.0,0.00022428]
[1738977043717,0.55010368,96718.0,96717.0,0.00022428]
[1738977044065,0.55110368,96718.0,96717.0,0.00022428]
[1738977044473,0.55110368,96718.0,96717.0,0.10272793]
[1738977044927,0.53475902,96718.0,96717.0,0.10272793]
[1738977045150,0.53575902,96718.0,96717.0,0.10272793]
[1738977045679,0.53675902,96718.0,96717.0,0.10272793]
[1738977045893,0.52829363,96718.0,96717.0,0.10272793]
[1738977046320,0.52929363,96718.0,96717.0,0.10272793]
[1738977047234,0.52929363,96718.0,96717.0,0.10372793]
[1738977047683,0.52929363,96718.0,96717.0,0.10272793]
[1738977048057,0.52929363,96718.0,96717.0,0.10372793]
[1738977048486,0.52829363,96718.0,96717.0,0.10372793]
[1738977048704,0.53375869,96718.0,96717.0,0.10372793]
[1738977048924,0.53475869,96718.0,96717.0,0.10372793]
[1738977049444,0.53475869,96718.0,96717.0,0.10272793]
[1738977049646,0.53375869,96718.0,96717.0,0.10372793]
[1738977049871,0.53475869,96718.0,96717.0,0.10372793]
[1738977050070,0.53475869,96718.0,96717.0,0.10272793]
[1738977050696,0.53475869,96718.0,96717.0,0.10372793]
[1738977052270,0.53475869,96718.0,96717.0,0.00122428]
[1738977052442,0.61695869,96718.0,96717.0,0.00122428]
[1738977053181,0.61595869,96718.0,96717.0,0.00022428]
[1738977053360,0.61895869,96718.0,96717.0,0.00022428]
[1738977053573,0.62295869,96718.0,96717.0,0.00022428]
[1738977053884,0.61995869,96718.0,96717.0,0.00022428]
[1738977054288,0.62195869,96718.0,96717.0,0.00022428]
[1738977054499,0.63230376,96718.0,96717.0,0.00022428]
[1738977054787,0.62830376,96718.0,96717.0,0.00022428]
[1738977055002,0.54610376,96718.0,96717.0,0.00022428]
[1738977055206,0.54610376,96718.0,96717.0,0.10272793]
[1738977055207,0.54910376,96718.0,96717.0,0.10272793]
[1738977055769,0.54710376,96718.0,96717.0,0.10272793]
[1738977055986,0.54410376,96718.0,96717.0,0.10272793]
[1738977056177,0.54810376,96718.0,96717.0,0.10272793]
[1738977058834,0.54710376,96718.0,96717.0,0.10272793]
[1738977059030,0.54410376,96718.0,96717.0,0.10272793]
[1738977059231,0.54410376,96718.0,96717.0,0.10372793]
[1738977059886,0.54510376,96718.0,96717.0,0.10372793]
[1738977061183,0.87281778,96718.0,96717.0,0.00122428]
[1738977061812,1.02281778,96718.0,96717.0,0.00122428]
[1738977062172,0.93109376,96718.0,96717.0,0.00022428]
[1738977062375,0.77900376,96718.0,96717.0,0.00022428]
[1738977062582,0.55110376,96718.0,96717.0,0.10272793]
[1738977063755,0.54810376,96718.0,96717.0,0.10272793]
[1738977064320,0.54410376,96718.0,96717.0,0.10272793]
[1738977064726,0.54510376,96718.0,96717.0,0.10272793]
[1738977065140,0.54510376,96718.0,96717.0,0.10372793]
[1738977065936,0.54510376,96718.0,96717.0,0.10272793]
[1738977066181,0.54410376,96718.0,96717.0,0.10472793]
[1738977066793,0.53375869,96718.0,96717.0,0.10472793]
[1738977067115,0.53375869,96718.0,96717.0,0.25981893]
[1738977067356,0.53375869,96718.0,96717.0,0.33851893]
[1738977067674,0.53375869,96718.0,96717.0,0.37080968]
[1738977070186,0.53375869,96718.0,96717.0,0.69770968]
[1738977070977,0.52729363,96718.0,96717.0,0.69770968]
[1738977076430,0.52729363,96718.0,96717.0,0.71870968]
[1738977076629,0.52829363,96718.0,96717.0,0.72170968]
[1738977077132,0.52929363,96718.0,96717.0,0.72170968]
[1738977078035,0.52829363,96718.0,96717.0,0.71870968]
[1738977078261,0.52929363,96718.0,96717.0,0.71870968]
[1738977078467,0.52929363,96718.0,96717.0,0.64000968]
[1738977078712,0.53029363,96718.0,96717.0,0.64700968]
[1738977079091,0.52929363,96718.0,96717.0,0.64000968]
[1738977079499,0.53029363,96718.0,96717.0,0.64700968]
[1738977083013,0.53029363,96718.0,96717.0,0.59171893]
[1738977083814,0.53029363,96718.0,96717.0,0.43662793]
[1738977084021,0.60689363,96718.0,96717.0,0.43662793]
[1738977084244,0.60689363,96718.0,96717.0,0.10972793]
[1738977084992,0.61335846,96718.0,96717.0,0.10972793]
[1738977085186,0.61135846,96718.0,96717.0,0.10972793]
[1738977085392,0.61035846,96718.0,96717.0,0.10272793]
[1738977085810,0.61135846,96718.0,96717.0,0.10772793]
[1738977086378,0.61235846,96718.0,96717.0,0.00522428]
[1738977086581,0.84900055,96718.0,96717.0,0.00522428]
[1738977086907,0.85934465,96718.0,96717.0,0.00522428]
[1738977087112,0.85834465,96718.0,96717.0,0.00022428]
[1738977087460,0.85934465,96718.0,96717.0,0.00322428]
[1738977087676,0.85834465,96718.0,96717.0,0.00322428]
[1738977087899,0.85734465,96718.0,96717.0,0.00022428]
[1738977088258,0.77679256,96718.0,96717.0,0.00022428]
[1738977088756,0.97279256,96718.0,96717.0,0.00022428]
[1738977089571,0.97579256,96718.0,96717.0,0.00022428]
[1738977089816,0.97279256,96718.0,96717.0,0.00022428]
[1738977090116,0.97579256,96718.0,96717.0,0.00022428]
[1738977090318,1.07729621,96718.0,96717.0,0.00022428]
[1738977090624,0.97579256,96718.0,96717.0,0.00022428]
[1738977091021,0.97479256,96718.0,96717.0,0.00022428]
[1738977091527,0.97579256,96718.0,96717.0,0.00022428]
[1738977092084,0.97479256,96718.0,96717.0,0.00022428]
[1738977092293,1.07729621,96718.0,96717.0,0.00022428]
[1738977092534,1.07429621,96718.0,96717.0,0.00022428]
[1738977092951,1.07929621,96718.0,96717.0,0.00022428]
[1738977093494,1.08329621,96718.0,96717.0,0.00022428]
[1738977093920,1.07929621,96718.0,96717.0,0.00022428]
[1738977094122,1.08329621,96718.0,96717.0,0.00022428]
[1738977096741,1.09622914,96718.0,96717.0,0.00022428]